bitfinex-derivatives/quotes_BNBF0:USTF0_20260221
["timestamp","ask_amount","ask_price","bid_price","bid_amount"]
[1771687491142,1.2186196,631.91,631.52,1.125]
[1771687491346,1.17444338,631.92,631.52,1.125]
[1771687491347,1.2186196,631.9,631.52,1.125]
[1771687491545,1.17444338,631.92,631.52,1.125]
[1771687491848,1.21864959,631.91,631.52,1.125]
[1771687492049,1.21864959,631.9,631.52,1.125]
[1771687492349,1.17444338,631.92,631.52,1.125]
[1771687492549,1.21869222,631.91,631.52,1.125]
[1771687492749,1.21869222,631.9,631.52,1.125]
[1771687493050,1.17444338,631.92,631.52,1.125]
[1771687493250,1.21869222,631.91,631.52,1.125]
[1771687493548,1.21869222,631.9,631.52,1.125]
[1771687493748,1.17444338,631.9,631.52,1.125]
[1771687498155,2.39349132,631.89,631.52,1.125]
[1771687498348,1.17444338,631.89,631.52,1.125]
[1771687501152,1.17444338,631.88,631.52,1.125]
[1771687503153,1.17486685,631.87,631.52,1.125]
[1771687505254,2.39825466,631.86,631.52,1.125]
[1771687505457,1.17486685,631.86,631.52,1.125]
[1771687506153,1.17486685,631.85,631.52,1.125]
[1771687507158,1.17486685,631.84,631.52,1.125]
[1771687508256,2.39979931,631.83,631.52,1.125]
[1771687508461,1.17486685,631.83,631.52,1.125]
[1771687509159,1.17486685,632.03,631.52,1.125]
[1771687510160,1.17486685,632.04,631.52,1.125]
[1771687511062,1.17486685,632.05,631.52,1.125]
[1771687512163,1.17486685,632.06,631.52,1.125]
[1771687514162,1.17486685,632.07,631.52,1.125]
[1771687516064,1.17486685,632.08,631.52,1.125]
[1771687518371,1.17486685,632.09,631.52,1.125]
[1771687519673,1.17413602,632.09,631.52,1.125]
[1771687521468,1.17413602,632.09,631.33,1.45857188]
[1771687521875,1.17413602,632.07,631.33,0.27550281]
[1771687523774,1.17413602,632.08,631.33,0.27550281]
[1771687523975,1.17413602,632.08,631.34,1.354]
[1771687524577,1.17413602,632.04,631.34,1.354]
[1771687528174,1.2215115,632.03,631.34,1.354]
[1771687528378,1.17413602,632.0,631.34,1.354]
[1771687528876,2.39566999,631.99,631.34,1.354]
[1771687529075,1.17413602,631.99,631.34,1.354]
[1771687533277,1.17413602,631.98,631.34,1.354]
[1771687539287,1.17413602,631.97,631.34,1.354]
[1771687540385,1.17413602,631.93,631.34,1.354]
[1771687540589,1.17413602,631.92,631.34,1.354]
[1771687547189,1.17413602,631.91,631.34,1.354]
[1771687550291,1.17413602,631.89,631.34,1.354]
[1771687550596,1.17413602,631.87,631.34,1.354]
[1771687550796,2.3969303,631.86,631.34,1.354]
[1771687550991,2.39689006,631.85,631.34,1.354]
[1771687551193,1.17413602,631.85,631.34,1.354]
[1771687554398,1.17413602,631.83,631.34,1.354]
[1771687555097,1.17413602,631.84,631.34,1.354]
[1771687559396,1.17413602,631.77,631.34,1.354]
[1771687560202,1.56598059,631.89,631.34,1.354]
[1771687560501,1.17388253,631.77,631.34,1.354]
[1771687562303,1.17388253,631.78,631.34,1.354]
[1771687565111,1.17388253,631.77,631.34,1.354]
[1771687565308,1.17388253,631.78,631.34,1.354]
[1771687566209,1.17388253,631.77,631.34,1.354]
[1771687566510,1.17388253,631.78,631.34,1.354]
[1771687567112,1.17388253,631.77,631.34,1.354]
[1771687567312,1.17388253,631.78,631.34,1.354]
[1771687569110,1.17388253,631.77,631.34,1.354]
[1771687571011,1.17388253,631.77,631.21,0.27549954]
[1771687574813,1.17388253,631.77,631.22,1.26]
[1771687577220,1.17388253,631.76,631.22,1.26]
[1771687577516,1.17388253,631.8,631.22,1.26]
[1771687577719,1.17388253,631.81,631.22,1.26]
[1771687578122,1.17388253,631.8,631.22,1.26]
[1771687578322,1.17388253,631.81,631.22,1.26]
[1771687579123,1.17388253,631.8,631.22,1.26]
[1771687582524,1.17388253,631.79,631.22,1.26]
[1771687585024,1.17388253,631.78,631.22,1.26]
[1771687589226,1.17388253,631.77,631.22,1.26]
[1771687591330,1.17388253,631.76,631.22,1.26]
[1771687594334,1.17388253,631.75,631.22,1.26]
[1771687596239,1.17388253,631.74,631.22,1.26]
[1771687599347,1.22739863,631.73,631.22,1.26]
[1771687599546,1.17388253,631.72,631.22,1.26]
[1771687599842,1.17388253,631.72,631.21,0.27549954]
[1771687602153,1.17388253,631.71,631.21,0.27549954]
[1771687604350,1.17388253,631.71,631.13,1.18406854]
[1771687604750,1.17388253,631.71,631.13,1.4596368]
[1771687604951,1.17388253,631.58,631.07,1.631]
[1771687605355,1.17388253,631.59,631.07,1.631]
[1771687606157,1.17388253,631.6,631.07,1.631]
[1771687606451,1.56598059,631.71,631.07,1.631]
[1771687606658,1.17823541,631.6,631.07,1.631]
[1771687607855,2.40503624,631.59,631.07,1.631]
[1771687608159,1.17823541,631.59,631.07,1.631]
[1771687609359,1.17823541,631.6,631.07,1.631]
[1771687610161,1.22643547,631.59,631.07,1.631]
[1771687610461,1.17823541,631.56,631.07,1.631]
[1771687611262,1.17823541,631.57,631.07,1.631]
[1771687611462,1.17823541,631.56,631.07,1.631]
[1771687611761,1.17823541,631.52,631.07,1.631]
[1771687612161,1.17823541,631.53,631.07,1.631]
[1771687612361,1.17823541,631.5,631.07,1.631]
[1771687613462,1.17823541,631.47,631.07,1.631]
[1771687613859,1.17823541,631.42,631.07,1.631]
[1771687614364,1.17823541,631.44,631.07,1.631]
[1771687615360,1.17823541,631.45,631.07,1.631]
[1771687616263,1.17823541,631.46,631.07,1.631]
[1771687617265,1.17823541,631.47,631.07,1.631]
[1771687618267,1.17823541,631.48,631.07,1.631]
[1771687620165,1.17823541,631.49,631.07,1.631]
[1771687622267,1.17823541,631.5,631.07,1.631]
[1771687623874,1.17823541,631.46,631.07,1.631]
[1771687624473,1.17823541,631.47,631.07,1.631]
[1771687625872,1.17823541,631.44,631.07,1.631]
[1771687626474,1.17823541,631.39,631.07,1.631]
[1771687627273,1.17823541,631.4,631.07,1.631]
[1771687628271,1.17823541,631.38,631.07,1.631]
[1771687628473,1.17823541,631.34,631.07,1.631]
[1771687628678,1.21098791,631.33,631.07,1.631]
[1771687628877,1.17823541,631.29,631.07,1.631]
[1771687629279,1.17823541,631.2,631.07,1.631]
[1771687629578,1.17823541,631.21,631.07,1.631]
[1771687630280,1.17823541,631.23,631.07,1.631]
[1771687630479,1.17823541,631.21,631.07,1.631]
[1771687631380,1.17823541,631.22,631.07,1.631]
[1771687632382,1.17823541,631.23,631.07,1.631]
[1771687633286,1.17823541,631.24,631.07,1.631]
[1771687634488,1.17823541,631.25,631.07,1.631]
[1771687634984,1.17823541,631.26,631.07,1.631]
[1771687635387,1.17823541,631.27,631.07,1.631]
[1771687637188,1.17823541,631.27,629.84,70.04540376]
[1771687637189,1.20550248,631.26,629.45,1.58291619]
[1771687637484,1.16193336,630.78,629.98,0.2758741]
[1771687637684,1.16193336,630.78,629.41,1.58291619]
[1771687638188,1.16193336,630.8,629.54,1.17452768]
[1771687638487,1.16193336,630.83,629.5,1.17452768]
[1771687639388,1.16193336,630.85,629.47,1.17452768]
[1771687640289,1.16193336,630.88,629.45,1.17452768]
[1771687640789,1.16193336,630.86,629.45,1.17452768]
[1771687640987,1.16193336,630.85,629.42,1.17452768]
[1771687641490,1.16193336,630.87,629.4,1.17452768]
[1771687641691,1.16193336,630.86,629.39,1.17452768]
[1771687641891,1.16193336,630.82,629.35,1.17452768]
[1771687642291,23.61629175,635.81,629.33,1.17452768]
[1771687642292,1.16193336,630.84,629.33,1.17452768]
[1771687643487,1.16193336,630.84,629.22,1.58291619]
[1771687643488,1.16193336,630.86,629.31,1.17452768]
[1771687643789,1.16193336,630.82,629.16,1.58291619]
[1771687644488,1.16193336,630.82,629.05,2.36244576]
[1771687644489,1.16193336,630.83,629.15,1.58291619]
[1771687645489,1.16193336,630.83,628.35,5.46905287]
[1771687645490,1.16193336,630.84,629.14,1.58291619]
[1771687646395,1.16193336,630.85,629.13,1.58291619]
[1771687647393,3.9126045,631.53,628.56,3.90646633]
[1771687647394,1.16193336,630.86,629.12,1.58291619]
[1771687648293,1.16193336,630.85,629.13,1.58291619]
[1771687648593,1.16193336,630.86,629.12,1.58291619]
[1771687649196,1.16193336,630.85,629.13,1.58291619]
[1771687649395,1.16193336,630.86,629.12,1.58291619]
[1771687649995,1.16193336,630.86,629.13,1.203]
[1771687650399,1.16193336,630.87,629.13,1.203]
[1771687651196,1.16193336,630.86,629.13,1.203]
[1771687651401,1.16193336,630.87,629.13,1.203]
[1771687652198,1.16193336,630.86,629.13,1.203]
[1771687652403,1.16193336,630.87,629.13,1.203]
[1771687653204,1.16193336,630.86,629.13,1.203]
[1771687656307,2.32386672,631.08,629.13,1.203]
[1771687656308,1.16193336,630.85,629.13,2.78591619]
[1771687657209,1.16193336,630.84,629.14,1.58291619]
[1771687657505,1.16193336,630.84,629.13,2.78591619]
[1771687658209,1.16193336,630.84,629.14,1.58291619]
[1771687659311,1.16193336,630.83,629.15,1.58291619]
[1771687661211,1.16193336,630.82,629.16,1.58291619]
[1771687662212,1.16193336,630.81,629.17,1.58291619]
[1771687663212,1.16193336,630.8,629.18,1.58291619]
[1771687664312,1.16193336,630.78,629.2,1.58291619]
[1771687666711,1.16193336,630.77,629.21,1.58291619]
[1771687667410,1.16193336,630.75,629.23,1.58291619]
[1771687668312,1.16193336,630.73,629.25,1.58291619]
[1771687669214,1.16193336,630.7,629.22,1.58291619]
[1771687669415,1.16193336,630.68,629.24,1.58291619]
[1771687670315,1.16193336,630.65,629.27,1.58291619]
[1771687671216,1.16193336,630.63,629.29,1.58291619]
[1771687672120,1.16193336,630.58,629.24,1.58291619]
[1771687672315,1.16193336,630.55,629.26,1.58291619]
[1771687672817,1.16193336,630.54,629.24,1.58291619]
[1771687673321,1.16193336,630.51,629.27,1.58291619]
[1771687673821,1.16193336,630.54,629.29,1.58291619]
[1771687674416,1.16193336,630.52,629.3,1.58291619]
[1771687675318,1.16193336,630.51,629.32,1.58291619]
[1771687676321,1.16193336,630.49,629.34,1.58291619]
[1771687677320,1.16193336,630.47,629.36,1.58291619]
[1771687678324,1.16193336,630.44,629.38,1.58291619]
[1771687679320,1.16193336,630.41,629.41,1.58291619]
[1771687680320,1.16193336,630.37,629.45,1.58291619]
[1771687681121,1.19742766,630.36,629.45,1.58291619]
[1771687681424,1.16193336,630.31,629.52,1.58291619]
[1771687684425,1.16193336,630.31,629.41,2.36244576]
[1771687684426,1.16193336,630.31,629.53,1.58291619]
[1771687687331,1.16193336,630.31,629.42,2.36244576]
[1771687687332,1.16193336,630.31,629.54,1.58291619]
[1771687688235,1.16193336,630.32,629.53,1.58291619]
[1771687688532,1.16193336,630.32,629.42,2.36244576]
[1771687688533,1.16193336,630.32,629.54,1.58291619]
[1771687692333,1.16193336,630.33,629.54,1.58291619]
[1771687694531,1.16193336,630.33,629.55,1.58291619]
[1771687695338,1.16193336,630.34,629.55,1.58291619]
[1771687700342,1.16193336,630.33,629.55,1.58291619]
[1771687700738,1.16193336,630.34,629.55,1.58291619]
[1771687701338,1.16193336,630.34,629.44,2.36244576]
[1771687701339,1.16193336,630.33,629.56,1.58291619]
[1771687706247,1.16193336,630.33,629.57,1.58291619]
[1771687706644,1.16193336,630.31,629.55,1.58291619]
[1771687709347,1.16193336,630.31,629.56,1.58291619]
[1771687710348,1.16193336,630.3,629.56,1.58291619]
[1771687712352,1.16193336,630.29,629.57,1.58291619]
[1771687714254,1.16193336,630.29,629.58,1.58291619]
[1771687715350,1.16193336,630.28,629.58,1.58291619]
[1771687716352,1.16193336,630.27,629.59,1.58291619]
[1771687718254,1.16193336,630.28,629.59,1.58291619]
[1771687718657,1.16193336,630.26,629.57,1.58291619]
[1771687718953,1.16193336,630.15,629.46,1.58291619]
[1771687719153,1.16193336,630.16,629.44,1.58291619]
[1771687719858,1.16193336,630.17,629.45,1.58291619]
[1771687720158,1.16193336,630.24,629.51,1.58291619]
[1771687720354,1.16193336,630.23,629.5,1.58291619]
[1771687720654,1.16193336,630.22,629.49,1.58291619]
[1771687722356,1.16193336,630.23,629.48,1.58291619]
[1771687725559,1.16193336,630.24,629.49,1.58291619]
[1771687726263,1.16193336,630.24,629.48,1.58291619]
[1771687728163,1.16193336,630.25,629.48,1.58291619]
[1771687733965,1.16193336,630.26,629.6,1.1888369]
[1771687735872,1.16193336,630.25,629.59,1.1888369]
[1771687737269,1.16193336,630.25,629.6,1.444]
[1771687740471,1.16193336,630.23,629.6,1.444]
[1771687744270,1.16193336,630.21,629.6,1.444]
[1771687752182,1.16193336,630.2,629.6,1.444]
[1771687757184,1.16193336,630.19,629.6,1.444]
[1771687762292,1.16193336,630.18,629.6,1.444]
[1771687767296,1.16193336,630.18,629.57,1.1888369]
[1771687777199,1.16193336,630.17,629.57,1.1888369]
[1771687777802,1.16193336,630.17,629.58,1.7]
[1771687779400,1.16193336,630.17,629.58,2.8888369]
[1771687783199,1.16193336,630.16,629.58,2.8888369]
[1771687786102,1.16193336,630.16,629.59,1.1888369]
[1771687789220,1.16193336,630.15,629.59,1.1888369]
[1771687794021,1.16193336,630.16,629.61,1.1888369]
[1771687795318,1.16193336,630.05,629.58,1.7]
[1771687796325,1.16193336,630.07,629.58,1.7]
[1771687797220,1.16193336,630.08,629.58,1.7]
[1771687799325,1.16193336,630.09,629.58,1.7]
[1771687800724,1.16193336,630.08,629.58,1.7]
[1771687802131,1.16193336,630.06,629.58,1.7]
[1771687802332,1.16193336,630.0,629.58,1.7]
[1771687802532,1.16193336,629.95,629.58,1.7]
[1771687803232,1.16193336,629.97,629.58,1.7]
[1771687804134,0.27626283,630.46,629.58,1.7]
[1771687804135,1.16193336,629.98,629.58,1.7]
[1771687805236,2.32386672,630.21,629.58,1.7]
[1771687805237,1.16193336,629.99,629.58,1.7]
[1771687806338,1.16193336,630.0,629.58,1.7]
[1771687807337,1.16193336,630.01,629.58,1.7]
[1771687808138,1.16193336,630.02,629.58,1.7]
[1771687810237,1.16193336,630.03,629.58,1.7]
[1771687812233,1.16193336,630.04,629.58,1.7]
[1771687813439,1.16193336,629.97,629.58,1.7]
[1771687813739,2.32386672,630.2,629.58,1.7]
[1771687813740,1.16193336,629.95,629.58,1.7]
[1771687814239,1.16193336,629.96,629.58,1.7]
[1771687815237,1.16193336,629.97,629.58,1.7]
[1771687815543,1.18990695,629.96,629.58,1.7]
[1771687815843,1.16193336,629.92,629.58,1.7]
[1771687816244,1.16193336,629.93,629.58,1.7]
[1771687817341,1.16193336,629.94,629.58,1.7]
[1771687819042,1.16193336,629.9,629.58,1.7]
[1771687819241,1.16193336,629.91,629.58,1.7]
[1771687820245,1.16193336,629.92,629.58,1.7]
[1771687822244,1.16193336,629.93,629.58,1.7]
[1771687822944,1.16193336,629.92,629.58,1.7]
[1771687823247,1.16193336,629.93,629.58,1.7]
[1771687824149,1.16193336,629.9,629.58,1.7]
[1771687824746,1.16193336,629.9,628.81,1.58291619]
[1771687826153,1.16193336,629.9,628.8,1.58291619]
[1771687826352,1.16193336,629.9,628.81,1.58291619]
[1771687827154,1.16193336,629.91,628.8,1.58291619]
[1771687827354,1.16193336,629.9,628.82,1.771]
[1771687827654,1.16193336,629.98,628.88,1.58291619]
[1771687828255,1.16193336,629.99,628.89,1.58291619]
[1771687828455,1.16193336,630.01,628.92,1.58291619]
[1771687830254,1.16193336,630.0,628.92,1.58291619]
[1771687831158,1.16193336,630.0,628.93,1.58291619]
[1771687832262,1.16193336,629.99,628.93,1.58291619]
[1771687833257,1.16193336,629.99,628.94,1.58291619]
[1771687834360,1.16193336,629.98,628.95,1.58291619]
[1771687835267,1.16193336,629.97,628.95,1.58291619]
[1771687835463,1.16193336,629.99,628.97,1.58291619]
[1771687835663,1.16193336,630.05,629.03,1.58291619]
[1771687836371,0.27626283,630.46,629.07,1.58291619]
[1771687836372,1.16193336,630.07,629.07,1.58291619]
[1771687837367,1.16193336,630.06,629.08,1.58291619]
[1771687838272,1.16193336,630.05,629.09,1.58291619]
[1771687839272,1.16193336,630.04,629.1,1.58291619]
[1771687840273,1.16193336,630.03,629.11,1.58291619]
[1771687842177,1.16193336,630.03,629.12,1.58291619]
[1771687842473,1.16193336,630.02,629.12,1.58291619]
[1771687843274,1.16193336,630.02,629.13,1.58291619]
[1771687844179,1.16193336,630.01,629.13,1.58291619]
[1771687846281,1.16193336,630.01,629.14,1.58291619]
[1771687846978,1.16193336,630.01,628.82,1.771]
[1771687846979,1.16193336,630.0,629.12,1.58291619]
[1771687847281,1.16193336,629.99,629.13,1.58291619]
[1771687848178,1.16193336,630.0,629.13,1.58291619]
[1771687854086,1.16193336,630.01,629.13,1.58291619]
[1771687855790,1.16193336,630.02,629.14,1.58291619]
[1771687855989,1.16193336,630.04,629.16,1.58291619]
[1771687856189,1.16193336,630.03,629.15,1.58291619]
[1771687856389,1.16193336,629.98,629.1,1.58291619]
[1771687860290,1.16193336,629.99,629.1,1.58291619]
[1771687861194,1.16193336,629.98,629.1,1.58291619]
[1771687862190,1.16193336,629.98,629.11,1.58291619]
[1771687863895,1.16193336,629.93,629.06,1.58291619]
[1771687864191,1.16193336,629.92,629.05,1.58291619]
[1771687865196,1.16193336,629.91,629.05,1.58291619]
[1771687866393,1.16193336,629.91,629.06,1.58291619]
[1771687867297,1.16193336,629.9,629.06,1.58291619]
[1771687867593,1.16193336,629.86,629.01,1.58291619]
[1771687867798,1.16193336,629.86,629.07,1.233]
[1771687868293,1.16193336,629.85,629.07,1.233]
[1771687871201,1.16193336,629.84,629.07,1.233]
[1771687871401,1.16193336,629.83,629.07,1.233]
[1771687872604,1.16193336,629.84,629.07,1.233]
[1771687876202,1.16193336,629.85,629.07,1.233]
[1771687877105,1.16193336,629.78,629.07,1.233]
[1771687878308,1.16193336,629.79,629.07,1.233]
[1771687880308,1.16193336,629.8,629.07,1.233]
[1771687881607,1.16193336,629.85,629.07,1.233]
[1771687883009,1.16193336,629.85,628.99,1.58291619]
[1771687884109,1.16193336,629.87,629.12,1.18754589]
[1771687886917,1.16193336,629.87,629.13,1.818]
[1771687889316,1.54924448,629.98,629.13,1.818]
[1771687889317,1.16193336,629.86,629.13,1.818]
[1771687893222,1.16193336,629.86,629.13,3.00554589]
[1771687894621,1.16193336,629.81,629.13,1.818]
[1771687894923,1.16193336,629.77,629.13,1.818]
[1771687898728,1.16193336,629.76,629.13,1.818]
[1771687903328,1.16193336,629.75,629.13,1.818]
[1771687908534,1.16193336,629.76,629.13,1.818]
[1771687908734,1.16193336,629.78,629.13,1.818]
[1771687909332,1.16193336,629.77,629.13,1.818]
[1771687912334,1.16193336,629.78,629.13,1.818]
[1771687913236,1.16193336,629.77,629.13,1.818]
[1771687914134,1.16193336,629.78,629.13,1.818]
[1771687914336,1.16193336,629.77,629.13,1.818]
[1771687914538,1.16193336,629.78,629.13,1.818]
[1771687914833,1.16193336,629.8,629.14,1.18754589]
[1771687917238,1.16193336,629.79,629.14,1.18754589]
[1771687921040,1.16193336,629.79,629.13,3.00554589]
[1771687921238,1.16193336,629.78,629.13,3.00554589]
[1771687923641,1.16193336,629.77,629.13,1.818]
[1771687929349,1.16193336,629.77,629.13,3.00554589]
[1771687933255,1.16193336,629.76,629.13,3.00554589]
[1771687937356,1.16193336,629.76,629.14,1.18754589]
[1771687941962,1.16193336,629.77,629.15,1.18754589]
[1771687942163,1.16193336,629.78,629.16,1.18754589]
[1771687942366,1.16193336,629.79,629.18,1.18754589]
[1771687943461,1.16193336,629.8,629.18,1.18754589]
[1771687943966,1.16193336,629.79,629.18,1.18754589]
[1771687944166,1.16193336,629.8,629.18,1.18754589]
[1771687947769,1.16193336,629.81,629.19,1.18754589]
[1771687947973,1.16193336,629.87,629.26,1.18754589]
[1771687948473,1.16193336,629.88,629.25,1.18754589]
[1771687949170,1.16193336,629.88,629.26,1.33]
[1771687950273,1.16193336,629.89,629.26,1.33]
[1771687953278,1.16193336,629.9,629.26,1.33]
[1771687954476,1.16193336,629.88,629.26,1.33]
[1771687955480,1.16193336,629.85,629.26,1.33]
[1771687955881,1.16193336,629.78,629.26,1.33]
[1771687961385,1.16193336,629.79,629.26,1.33]
[1771687961684,1.16193336,629.78,629.26,1.33]
[1771687968994,1.16193336,629.8,629.26,1.33]
[1771687969493,1.16193336,629.81,629.26,1.33]
[1771687970692,1.16193336,629.99,629.36,1.18754589]
[1771687970888,1.16193336,630.13,629.39,1.18754589]
[1771687971090,1.16193336,630.14,629.47,1.18754589]
[1771687971290,1.16193336,630.14,629.48,1.18754589]
[1771687971495,1.16193336,630.17,629.45,1.18754589]
[1771687972391,1.16193336,630.19,629.43,1.18754589]
[1771687973390,1.54924448,630.3,629.26,1.33]
[1771687973391,1.16193336,630.21,629.42,1.18754589]
[1771687974394,1.16193336,630.31,629.49,1.18754589]
[1771687974696,1.19100293,630.3,629.49,1.18754589]
[1771687974893,1.19100293,630.29,629.49,1.18754589]
[1771687975197,1.19100293,630.28,629.49,1.18754589]
[1771687975493,1.16193336,630.32,629.48,1.18754589]
[1771687975693,1.16193336,630.27,629.43,1.18754589]
[1771687975898,2.35250506,630.26,629.42,1.18754589]
[1771687976197,1.1905717,630.25,629.42,1.18754589]
[1771687976494,1.1905717,630.24,629.41,1.18754589]
[1771687976695,1.1905717,630.23,629.41,1.18754589]
[1771687976897,1.1905717,630.22,629.41,1.18754589]
[1771687977097,1.16193336,630.27,629.41,1.18754589]
[1771687977292,1.18982823,630.26,629.41,1.18754589]
[1771687977494,1.18982823,630.25,629.41,1.18754589]
[1771687977695,1.18982823,630.24,629.41,1.18754589]
[1771687977898,1.18982823,630.23,629.41,1.18754589]
[1771687978100,1.16193336,630.27,629.41,1.18754589]
[1771687978294,1.18961108,630.26,629.41,1.18754589]
[1771687978499,1.18961108,630.25,629.41,1.18754589]
[1771687978695,1.18961108,630.24,629.41,1.18754589]
[1771687978897,1.18961108,630.23,629.41,1.18754589]
[1771687979095,1.16193336,630.28,629.41,1.18754589]
[1771687979294,1.18941973,630.27,629.41,1.18754589]
[1771687979499,1.18941973,630.26,629.4,1.18754589]
[1771687979799,1.18941973,630.25,629.4,1.18754589]
[1771687979998,1.18941973,630.24,629.4,1.18754589]
[1771687980196,1.18941973,630.23,629.4,1.18754589]
[1771687980395,1.16193336,630.28,629.4,1.18754589]
[1771687980600,1.18936034,630.27,629.39,1.18754589]
[1771687980898,1.18936034,630.26,629.39,1.18754589]
[1771687981100,1.18936034,630.25,629.39,1.18754589]
[1771687981400,1.18936034,630.24,629.39,1.18754589]
[1771687981601,1.18936034,630.23,629.39,1.18754589]
[1771687981802,1.16193336,630.28,629.39,1.18754589]
[1771687981999,1.18921246,630.27,629.39,1.18754589]
[1771687982298,1.18921246,630.26,629.39,1.18754589]
[1771687982498,1.18921246,630.25,629.39,1.18754589]
[1771687982799,1.16193336,630.37,629.48,1.18754589]
[1771687983002,1.18934766,630.36,629.48,1.18754589]
[1771687983304,1.18934766,630.35,629.47,1.18754589]
[1771687983504,1.18934766,630.34,629.47,1.18754589]
[1771687983702,1.18934766,630.33,629.47,1.18754589]
[1771687983906,1.16193336,630.38,629.47,1.18754589]
[1771687984206,1.18905035,630.37,629.51,1.18754589]
[1771687984502,1.16193336,630.46,629.54,1.18754589]
[1771687984702,2.3507702,630.45,629.53,1.18754589]
[1771687984902,1.18883684,630.44,629.53,1.18754589]
[1771687985102,1.18883684,630.43,629.52,1.18754589]
[1771687985302,1.18883684,630.42,629.52,1.18754589]
[1771687985501,1.18883684,630.41,629.52,1.18754589]
[1771687985706,1.18883684,630.4,629.52,1.18754589]
[1771687986004,1.18883684,630.39,629.52,1.18754589]
[1771687986202,1.16193336,630.46,629.51,1.18754589]
[1771687986405,1.19498821,630.45,629.51,1.18754589]
[1771687986606,1.19498821,630.44,629.51,1.18754589]
[1771687986803,1.19498821,630.43,629.53,1.18754589]
[1771687987004,1.19498821,630.42,629.53,1.18754589]
[1771687987207,0.27620801,630.6,629.52,1.18754589]
[1771687987208,1.19498821,630.41,629.52,1.18754589]
[1771687987409,1.16193336,630.49,629.52,1.18754589]
[1771687987607,1.19469446,630.48,629.52,1.18754589]
[1771687987808,1.19469446,630.47,629.52,1.18754589]
[1771687988007,1.19469446,630.46,629.52,1.18754589]
[1771687988206,1.19469446,630.45,629.52,1.18754589]
[1771687988408,1.19469446,630.44,629.52,1.18754589]
[1771687988709,1.19469446,630.43,629.52,1.18754589]
[1771687988909,1.16193336,630.51,629.53,1.18754589]
[1771687989104,1.19465714,630.5,629.53,1.18754589]
[1771687989305,1.19465714,630.49,629.52,1.18754589]
[1771687989506,1.19465714,630.48,629.52,1.18754589]
[1771687989705,1.19465714,630.47,629.52,1.18754589]
[1771687989904,1.19465714,630.46,629.55,1.18754589]
[1771687990110,1.16193336,630.54,629.55,1.18754589]
[1771687990408,1.19437829,630.53,629.54,1.18754589]
[1771687990606,1.19437829,630.52,629.53,1.18754589]
[1771687990805,1.19437829,630.51,629.53,1.18754589]
[1771687991109,1.19437829,630.5,629.52,1.18754589]
[1771687991306,1.19437829,630.49,629.52,1.18754589]
[1771687991505,1.19437829,630.48,629.52,1.18754589]
[1771687991705,1.19437829,630.47,629.52,1.18754589]
[1771687992009,1.19437829,630.46,629.52,1.18754589]
[1771687992203,1.16193336,630.54,629.52,1.18754589]
[1771687992407,1.19377951,630.53,629.52,1.18754589]
[1771687992604,1.16193336,630.54,629.52,1.18754589]
[1771687992605,1.19377951,630.52,629.52,1.18754589]
[1771687992807,1.19377951,630.51,629.52,1.18754589]
[1771687993006,1.19377951,630.5,629.52,1.18754589]
[1771687993205,1.16193336,630.54,629.52,1.18754589]
[1771687993206,1.19377951,630.49,629.52,1.18754589]
[1771687993408,1.19377951,630.48,629.51,1.18754589]
[1771687993610,1.19377951,630.47,629.51,1.18754589]
[1771687993809,1.16193336,630.55,629.51,1.18754589]
[1771687994011,1.19363607,630.54,629.51,1.18754589]
[1771687994307,1.19363607,630.53,629.51,1.18754589]
[1771687994508,1.19363607,630.52,629.51,1.18754589]
[1771687994709,1.19363607,630.51,629.51,1.18754589]
[1771687994908,1.19363607,630.5,629.51,1.18754589]
[1771687995111,1.19363607,630.49,629.51,1.18754589]
[1771687995410,1.19363607,630.48,629.51,1.18754589]
[1771687995611,1.19363607,630.47,629.51,1.18754589]
[1771687995809,1.16193336,630.55,629.51,1.18754589]
[1771687996012,1.1932494,630.54,629.51,1.18754589]
[1771687996211,1.1932494,630.53,629.5,1.18754589]
[1771687996409,1.1932494,630.52,629.5,1.18754589]
[1771687996713,1.1932494,630.51,629.5,1.18754589]
[1771687997014,1.1932494,630.5,629.5,1.18754589]
[1771687997314,1.1932494,630.49,629.5,1.18754589]
[1771687997514,1.1932494,630.48,629.5,1.18754589]
[1771687997714,1.16193336,630.56,629.5,1.18754589]
[1771687997910,1.19289706,630.55,629.5,1.18754589]
[1771687998211,1.19289706,630.54,629.5,1.18754589]
[1771687998514,1.19289706,630.53,629.5,1.18754589]
[1771687998811,1.19289706,630.52,629.5,1.18754589]
[1771687999110,1.19289706,630.51,629.5,1.18754589]
[1771687999315,1.19289706,630.5,629.5,1.18754589]